fUST/lending_fUST_20251120
["ID","MTS","AMOUNT","RATE_DAILY","PERIOD"]
[394436657,1763571043211,-204.36082,0.00024658,7]
[394436658,1763571043220,-204.36082,0.00024658,7]
[394436660,1763571043229,-151.0,0.00024658,7]
[394436662,1763571043239,-205.519645,0.00024658,7]
[394436663,1763571043248,-204.36082,0.00024658,7]
[394436664,1763571043257,-204.36082,0.00024658,7]
[394436665,1763571043267,-204.36082,0.00024658,7]
[394436666,1763571043276,-204.36082,0.00024658,7]
[394436667,1763571043284,-151.0,0.00024658,7]
[394436668,1763571043294,-151.0,0.00024658,7]
[394436669,1763571043303,-430.81369412,0.00024658,7]
[394436670,1763571043468,211.40399069,0.0001239,2]
[394436675,1763571044464,-2.91683488,0.00024658,7]
[394436676,1763571044476,-34.6347108,0.00024658,7]
[394436677,1763571044697,-538.8574407,0.0002464,10]
[394436689,1763571046101,-1889.4740184,0.00024031,2]
[394436690,1763571046111,-2370.7625593,0.0002464,10]
[394436691,1763571046120,-399.0958182,0.00024658,7]
[394436692,1763571046130,-362.8505622,0.00024658,7]
[394436695,1763571046419,-70.8799668,0.00024658,7]
[394436698,1763571046428,-433.730529,0.00024658,7]
[394436700,1763571046437,-151.0,0.00024658,7]
[394436702,1763571046447,-182.725385,0.00024658,7]
[394436704,1763571046455,-433.730529,0.00024658,7]
[394436705,1763571046465,-433.730529,0.00024658,7]
[394436707,1763571046477,-433.730529,0.00024658,7]
[394436709,1763571046487,-151.0,0.00024658,7]
[394436711,1763571046496,-433.730529,0.00024658,7]
[394436712,1763571046505,-151.0,0.00024658,7]
[394436713,1763571046515,-151.0,0.00024658,7]
[394436714,1763571046523,-169.2262,0.00024658,7]
[394436715,1763571046532,-169.2262,0.00024658,7]
[394436716,1763571046542,-151.0,0.00024658,7]
[394436717,1763571046552,-169.2262,0.00024658,7]
[394436718,1763571046561,-151.0,0.00024658,7]
[394436719,1763571046570,-169.2262,0.00024658,7]
[394436720,1763571046579,-151.0,0.00024658,7]
[394436721,1763571046588,-151.0,0.00024658,7]
[394436722,1763571046597,-169.2262,0.00024658,7]
[394436723,1763571046606,-151.0,0.00024658,7]
[394436724,1763571046616,-169.2262,0.00024658,7]
[394436725,1763571046637,-209.128939,0.00024658,7]
[394436726,1763571046647,-169.2262,0.00024658,7]
[394436727,1763571046657,-100.62030007,0.00024658,7]
[394436729,1763571091724,169.8126182,0.00011601,2]
[394436730,1763571111689,500.0,0.00012516,2]
[394436731,1763571116036,9330.1973818,0.00012416,2]
[394436732,1763571116066,880669.8026182,0.00012416,2]
[394436733,1763571155606,-417.26221786,0.00012515,2]
[394436734,1763571158881,-82.73778214,0.00012515,2]
[394436735,1763571158909,-417.26221786,0.00012515,2]
[394436736,1763571164141,-82.73778214,0.00012515,2]
[394436737,1763571164165,-187.02997161,0.00012515,2]
[394436738,1763571166991,-230.23224625,0.00012515,2]
[394436739,1763571169048,-82.73778214,0.00012515,2]
[394436740,1763571169074,-217.26221786,0.00012515,2]
[394436741,1763571172560,-244.75107191,0.00012515,2]
[394436742,1763571175568,-37.98671023,0.00012515,2]
[394436743,1763571175592,-132.55769816,0.00012515,2]
[394436744,1763571176900,244.75107191,0.0001239,2]
[394436748,1763571284794,4200.52682705,0.00012416,2]
[394436749,1763571296455,-9860.47162924,0.00012416,2]
[394436750,1763571299495,-10000.01,0.00012416,2]
[394436751,1763571302773,-10000.01,0.00012416,2]
[394436752,1763571303024,-10000.01,0.00012416,2]
[394436753,1763571303157,-10000.01,0.00012416,2]
[394436754,1763571303307,-232.0,0.00012415,2]
[394436755,1763571303345,-9536.01,0.00012416,2]
[394436756,1763571303418,-10000.01,0.00012416,2]
[394436757,1763571305792,-300.0,0.00012415,2]
[394436758,1763571305826,-9400.01,0.00012416,2]
[394436759,1763571311276,1206.0,0.0002534,120]
[394436760,1763571312519,1206.0,0.00026607,120]
[394436761,1763571313928,1206.0,0.00027937,120]
[394436762,1763571315189,1206.0,0.00029334,120]
[394436763,1763571316536,1206.0,0.00030801,120]
[394436764,1763571317930,1206.0,0.00032341,120]
[394436765,1763571338188,202.01554763,0.00040367,120]
[394436766,1763571339457,559.0,0.00040367,20]
[394436769,1763571472448,997.17978,0.00030137,120]
[394436777,1763571516505,166.908366,0.00011521,120]
[394436779,1763571608760,362.0,0.00027155,120]
[394436780,1763571610045,362.0,0.00028513,120]
[394436781,1763571611502,362.0,0.00029939,120]
[394436782,1763571612764,362.0,0.00031436,120]
[394436783,1763571615852,-311.67278258,0.00011306,2]
[394436784,1763571615879,-166.908366,0.00011406,2]
[394436785,1763571616472,-166.908366,0.00011521,2]
[394436786,1763571630327,155.28,0.00040372,20]
[394436787,1763571634491,-225.60230547,0.00011638,2]
[394436788,1763571634512,-98.40929203,0.00011756,2]
[394436789,1763571636846,-127.19301344,0.00011756,2]
[394436790,1763571636870,-117.8590208,0.00011875,2]
[394436791,1763571658056,205.574529,0.00040372,40]
[394436794,1763571813790,-107.74328467,0.00011875,2]
[394436795,1763571813818,-2670.14077172,0.00012229,2]
[394436796,1763571813845,-750.17,0.00012329,2]
[394436797,1763571813872,-221.75110719,0.00012413,2]
[394436798,1763571813899,-1200.0,0.00012413,2]
[394436799,1763571813989,-100.39967284,0.00012413,2]
[394436800,1763571814022,-199.60032716,0.00012413,2]
[394436801,1763571814052,-567.0,0.00012413,2]
[394436802,1763571815555,-374.57663598,0.00012414,2]
[394436803,1763571818061,-125.42336402,0.00012414,2]
[394436804,1763571818089,-500.0,0.00012414,2]
[394436805,1763571818129,-122.627451,0.00012414,2]
[394436806,1763571820876,-229.1045915,0.00012414,2]
[394436807,1763571824042,-148.2679575,0.00012414,2]
[394436808,1763571824068,-147.11692469,0.00012414,2]
[394436809,1763571825785,-296.53143497,0.00012414,2]
[394436812,1763571828437,-56.35164034,0.00012414,2]
[394436813,1763571828462,-107.8559576,0.00012414,2]
[394436814,1763571830890,-259.47912152,0.00012414,2]
[394436815,1763571832620,-132.66492088,0.00012414,2]
[394436816,1763571832648,-68.01701174,0.00012414,2]
[394436817,1763571834894,-431.98298826,0.00012414,2]
[394436818,1763571834920,-193.89830174,0.00012414,2]
[394436819,1763571837305,-245.51235665,0.00012414,2]
[394436820,1763571839667,-60.58934161,0.00012414,2]
[394436821,1763571839693,-99.51270136,0.00012414,2]
[394436822,1763571842141,-306.39006721,0.00012414,2]
[394436823,1763571845139,-94.09723143,0.00012414,2]
[394436824,1763571845167,-271.50431399,0.00012414,2]
[394436825,1763571846733,300.0,0.00012413,2]
[394436826,1763571847594,-152.45002922,0.00012414,2]
[394436827,1763571850704,-76.04565679,0.00012414,2]
[394436828,1763571850732,-146.45122129,0.00012414,2]
[394436829,1763571853040,-353.54877871,0.00012414,2]
[394436830,1763571853066,-41.8636567,0.00012414,2]
[394436831,1763571856179,-246.6493585,0.00012414,2]
[394436832,1763571857954,-211.4869848,0.00012414,2]
[394436833,1763571857981,-131.84025627,0.00012414,2]
[394436834,1763571859789,-242.73639536,0.00012414,2]
[394436835,1763571863463,-125.42334837,0.00012414,2]
[394436836,1763571863490,-85.83696833,0.00012414,2]
[394436837,1763571867549,-414.16303167,0.00012414,2]
[394436838,1763571867574,-85.83696833,0.00012414,2]
[394436839,1763571869831,-264.95505969,0.00012414,2]
[394436840,1763571873481,-149.20797198,0.00012414,2]
[394436841,1763571873509,-147.17230284,0.00012414,2]
[394436842,1763571878740,-300.0,0.00012414,2]
[394436843,1763571880910,-52.82769716,0.00012414,2]
[394436844,1763571880934,-288.80465674,0.00012414,2]
[394436845,1763571882594,-211.19534326,0.00012414,2]
[394436846,1763571882619,-86.43044597,0.00012414,2]
[394436847,1763571886030,-227.98607944,0.00012414,2]
[394436848,1763571888578,-169.76668593,0.00012414,2]
[394436849,1763571892533,-15.81678866,0.00012414,2]
[394436850,1763571892560,-225.51468836,0.00012414,2]
[394436851,1763571894818,-183.716,0.00012414,2]
[394436852,1763571896626,8166.80934568,0.0001229,2]
[394436853,1763571896654,10000.01,0.0001229,2]
[394436854,1763571896693,10000.01,0.0001229,2]
[394436855,1763571896718,10000.01,0.0001229,2]
[394436856,1763571896749,10000.01,0.0001229,2]
[394436857,1763571896776,10000.01,0.0001229,2]
[394436858,1763571896803,10000.01,0.0001229,2]
[394436859,1763571896826,10000.01,0.0001229,2]
[394436860,1763571896848,10000.01,0.0001229,2]
[394436861,1763571896872,10000.01,0.0001229,2]
[394436862,1763571896919,-335.04494031,0.0001229,2]
[394436865,1763571901462,804.83,5e-05,2]
[394436866,1763571901761,804.83,5.1e-05,2]
[394436867,1763571902147,804.83,5.2e-05,2]
[394436868,1763571902474,804.83,5.3e-05,2]
[394436869,1763571902821,804.83,5.4e-05,2]
[394436870,1763571903179,804.83,5.5e-05,2]
[394436871,1763571903507,804.83,5.6e-05,2]
[394436872,1763571903861,804.83,5.7e-05,2]
[394436873,1763571904230,804.83,5.8e-05,2]
[394436874,1763571904581,804.83,5.9e-05,2]
[394436875,1763571904995,804.83,6e-05,2]
[394436876,1763571905194,804.83,6.1e-05,2]
[394436877,1763571905555,804.83,6.2e-05,2]
[394436878,1763571905893,804.83,6.3e-05,2]
[394436879,1763571906246,804.83,6.4e-05,2]
[394436880,1763571906629,804.83,6.5e-05,2]
[394436881,1763571906911,804.83,6.6e-05,2]
[394436882,1763571907210,804.83,6.7e-05,2]
[394436883,1763571907495,804.83,6.8e-05,2]
[394436884,1763571907690,-1533.20065432,0.00012167,2]
[394436885,1763571907783,804.83,6.9e-05,2]
[394436886,1763571908147,804.83,7e-05,2]
[394436887,1763571908442,804.83,7.1e-05,2]
[394436888,1763571908746,804.83,7.2e-05,2]
[394436889,1763571909046,804.83,7.3e-05,2]
[394436890,1763571909327,804.83,7.4e-05,2]
[394436891,1763571909435,-1200.0,0.00012166,2]
[394436892,1763571909468,-7600.01,0.00012167,2]
[394436893,1763571909585,-10000.01,0.00012167,2]
[394436894,1763571909621,804.83,7.6e-05,2]
[394436895,1763571909710,-10000.01,0.00012167,2]
[394436896,1763571909829,-10000.01,0.00012167,2]
[394436897,1763571909907,804.83,7.7e-05,2]
[394436898,1763571909955,-1448.09262911,0.00012167,2]
[394436899,1763571909984,-300.0,0.00012289,2]
[394436900,1763571910044,-6503.82474178,0.0001229,2]
[394436901,1763571910070,-10000.01,0.0001229,2]
[394436902,1763571910198,-10000.01,0.0001229,2]
[394436903,1763571910237,804.83,7.8e-05,2]
[394436904,1763571910323,-10000.01,0.0001229,2]
[394436905,1763571910452,-4077.47854165,0.0001229,2]
[394436906,1763571910527,804.83,7.9e-05,2]
[394436907,1763571910810,804.83,8e-05,2]
[394436908,1763571910932,-90.76931164,0.00012414,2]
[394436909,1763571910957,-459.77640136,0.00012414,2]
[394436910,1763571911089,235.3929167,8.1e-05,2]
[394436911,1763571911112,569.4370833,8.1e-05,2]
[394436912,1763571911358,804.83,8.2e-05,2]
[394436913,1763571911655,804.83,8.3e-05,2]
[394436914,1763571911951,804.83,8.4e-05,2]
[394436915,1763571912254,804.83,8.5e-05,2]
[394436916,1763571912750,804.83,8.6e-05,2]
[394436917,1763571913060,804.83,8.7e-05,2]
[394436918,1763571913091,1200.0,0.00012044,2]
[394436919,1763571913343,804.83,8.8e-05,2]
[394436920,1763571913641,804.83,8.9e-05,2]
[394436921,1763571913972,804.83,9e-05,2]
[394436922,1763571914352,804.83,9.1e-05,2]
[394436923,1763571914629,182.2729167,9.2e-05,2]
[394436924,1763571914658,622.5570833,9.2e-05,2]
[394436925,1763571914920,804.83,9.3e-05,2]
[394436926,1763571915210,804.83,9.4e-05,2]
[394436927,1763571915527,804.83,9.5e-05,2]
[394436928,1763571915813,804.83,9.6e-05,2]
[394436929,1763571916085,-40.22359864,0.00012414,2]
[394436930,1763571916114,-176.0016093,0.00012414,2]
[394436931,1763571916147,804.83,9.7e-05,2]
[394436932,1763571917631,804.83,9.8e-05,2]
[394436933,1763571917794,-320.45531104,0.00012414,2]
[394436934,1763571918305,804.83,9.9e-05,2]
[394436935,1763571919466,-3.54307966,0.00012414,2]
[394436936,1763571919493,-180.49692034,0.00012414,2]
[394436937,1763571921548,6780.69,0.0001229,2]
[394436938,1763571921572,10000.01,0.0001229,2]
[394436939,1763571921595,10000.01,0.0001229,2]
[394436940,1763571921617,10000.01,0.0001229,2]
[394436941,1763571921641,10000.01,0.0001229,2]
[394436942,1763571921664,10000.01,0.0001229,2]
[394436943,1763571921685,10000.01,0.0001229,2]
[394436944,1763571921707,10000.01,0.0001229,2]
[394436945,1763571921730,10000.01,0.0001229,2]
[394436946,1763571921751,10000.01,0.0001229,2]
[394436947,1763571922672,-194.47980349,0.0001229,2]
[394436948,1763571961710,160.96,5e-05,2]
[394436949,1763571962030,160.96,6.3e-05,2]
[394436950,1763571962324,160.96,7.5e-05,2]
[394436951,1763571962588,160.96,8.8e-05,2]
[394436952,1763571964963,-300.0,0.00012044,2]
[394436953,1763571977185,-219.0,0.00011945,2]
[394436954,1763571980189,-7116.9570833,0.00012045,2]
[394436955,1763571980522,-368.04522985,0.00012045,2]
[394436956,1763571983328,-459.69360565,0.00012045,2]
[394436957,1763571983362,-1240.28928742,0.00012045,2]
[394436958,1763571983387,-7519.43142516,0.00012045,2]
[394436959,1763572011221,-380.60321431,0.00012045,2]
[394436960,1763572013616,-581.19573489,0.00012045,2]
[394436961,1763572016025,-347.11585858,0.00012045,2]
[394436962,1763572018894,-436.58281601,0.00012045,2]
[394436963,1763572021841,-213.59475807,0.00012045,2]
[394436964,1763572023614,-300.0,0.00012045,2]
[394436965,1763572027969,-156.24735338,0.00012045,2]
[394436966,1763572030412,-1048.25041885,0.00012045,2]
[394436967,1763572032148,-312.39077446,0.00012045,2]
[394436968,1763572034190,-300.0,0.00012045,2]
[394436969,1763572036536,-300.0,0.00012045,2]
[394436970,1763572039018,-207.03683551,0.00012045,2]
[394436975,1763572041324,-180.28029699,0.00012045,2]
[394436976,1763572044076,-243.83427879,0.00012045,2]
[394436977,1763572116192,-155.10605728,0.00011925,2]
[394436978,1763572116212,-103.84407957,0.00012045,2]
[394436980,1763572160147,-51.26197771,0.00012045,2]
[394436981,1763572160168,-300.0,0.00012164,2]
[394436982,1763572160188,-349.74971349,0.00012165,2]
[394436983,1763572160209,-397.69186383,0.00012165,2]
[394436984,1763572175600,-168.34857367,0.00012043,2]
[394436985,1763572177310,-552.80376963,0.00012043,2]
[394436986,1763572179048,-219.89751985,0.00012043,2]
[394436987,1763572181648,-292.73817395,0.00012043,2]
[394436988,1763572185569,-176.31038961,0.00011923,2]
[394436989,1763572187787,-170.0,0.00011923,2]
[394436990,1763572189490,-164.08738128,0.00011923,2]
[394436991,1763572195119,-454.62565805,0.00011923,2]
[394437036,1763572232060,-170.0,0.00011922,2]
[394437037,1763572232069,-300.0,0.00011922,2]
[394437038,1763572232079,-65.18702691,0.00011922,2]
[394437039,1763572232090,-1134.81297309,0.00011922,2]
[394437040,1763572232100,-1651.33088235,0.00011923,2]
[394437041,1763572232111,-957.99801922,0.00011923,2]
[394437042,1763572232122,-573.89636814,0.00011923,2]
[394437075,1763572237837,-244.82479945,0.00011922,2]
[394437077,1763572237851,-458.70499278,0.00011922,2]
[394437079,1763572237862,-41.29500722,0.00011922,2]
[394437081,1763572237871,-500.0,0.00011922,2]
[394437083,1763572237882,-500.0,0.00011922,2]
[394437085,1763572237891,-500.0,0.00011922,2]
[394437087,1763572237900,-500.0,0.00011922,2]
[394437089,1763572237909,-500.0,0.00011922,2]
[394437091,1763572237920,-500.0,0.00011922,2]
[394437093,1763572237929,-500.0,0.00011922,2]
[394437095,1763572237938,-500.0,0.00011922,2]
[394437097,1763572237946,-500.0,0.00011922,2]
[394437099,1763572237955,-500.0,0.00011922,2]
[394437101,1763572237964,-500.0,0.00011922,2]
[394437103,1763572237974,-500.0,0.00011922,2]
[394437105,1763572237982,-500.0,0.00011922,2]
[394437107,1763572237991,-500.0,0.00011922,2]
[394437109,1763572238000,-500.0,0.00011922,2]
[394437111,1763572238009,-500.0,0.00011922,2]
[394437112,1763572238019,-500.0,0.00011922,2]
[394437114,1763572238029,-500.0,0.00011922,2]
[394437116,1763572238040,-500.0,0.00011922,2]
[394437118,1763572238049,-500.0,0.00011922,2]
[394437120,1763572238059,-500.0,0.00011922,2]
[394437121,1763572238068,-500.0,0.00011922,2]
[394437122,1763572238077,-500.0,0.00011922,2]
[394437123,1763572238086,-500.0,0.00011922,2]
[394437124,1763572238096,-650.63661102,0.00011922,2]
[394437125,1763572238105,-500.0,0.00011922,2]
[394437126,1763572238115,-500.0,0.00011922,2]
[394437127,1763572238124,-500.0,0.00011922,2]
[394437128,1763572238133,-500.0,0.00011922,2]
[394437129,1763572238143,-500.0,0.00011922,2]
[394437130,1763572238152,-500.0,0.00011922,2]
[394437131,1763572238161,-500.0,0.00011922,2]
[394437132,1763572238170,-500.0,0.00011922,2]
[394437133,1763572238180,-500.0,0.00011922,2]
[394437134,1763572238189,-500.0,0.00011922,2]
[394437135,1763572238199,-500.0,0.00011922,2]
[394437136,1763572238208,-500.0,0.00011922,2]
[394437137,1763572238217,-500.0,0.00011922,2]
[394437138,1763572238226,-500.0,0.00011922,2]
[394437139,1763572238237,-500.0,0.00011922,2]
[394437141,1763572238246,-500.0,0.00011922,2]
[394437143,1763572238256,-500.0,0.00011922,2]
[394437145,1763572238265,-500.0,0.00011922,2]
[394437147,1763572238276,-500.0,0.00011922,2]
[394437149,1763572238286,-490.9508509,0.00011922,2]
[394437151,1763572238295,-500.0,0.00011922,2]
[394437153,1763572238305,-500.0,0.00011922,2]
[394437155,1763572238314,-300.0,0.00011922,2]
[394437157,1763572238324,-500.0,0.00011922,2]
[394437159,1763572238333,-500.0,0.00011922,2]
[394437161,1763572238345,-500.0,0.00011922,2]
[394437163,1763572238355,-500.0,0.00011922,2]
[394437165,1763572238365,-500.0,0.00011922,2]
[394437167,1763572238374,-500.0,0.00011922,2]
[394437169,1763572238383,-500.0,0.00011922,2]
[394437171,1763572238392,-500.0,0.00011922,2]
[394437173,1763572238402,-500.0,0.00011922,2]
[394437175,1763572238411,-500.0,0.00011922,2]
[394437177,1763572238421,-500.0,0.00011922,2]
[394437179,1763572238430,-500.0,0.00011922,2]
[394437181,1763572238440,-500.0,0.00011922,2]
[394437183,1763572238449,-500.0,0.00011922,2]
[394437186,1763572238459,-500.0,0.00011922,2]
[394437188,1763572238468,-500.0,0.00011922,2]
[394437190,1763572238479,-500.0,0.00011922,2]
[394437192,1763572238489,-500.0,0.00011922,2]
[394437194,1763572238498,-500.0,0.00011922,2]
[394437196,1763572238507,-500.0,0.00011922,2]
[394437198,1763572238516,-500.0,0.00011922,2]
[394437200,1763572238528,-500.0,0.00011922,2]
[394437202,1763572238537,-500.0,0.00011922,2]
[394437204,1763572238547,-500.0,0.00011922,2]
[394437206,1763572238556,-500.0,0.00011922,2]
[394437208,1763572238566,-500.0,0.00011922,2]
[394437210,1763572238575,-500.0,0.00011922,2]
[394437212,1763572238584,-500.0,0.00011922,2]
[394437214,1763572238593,-600.73880567,0.00011922,2]
[394437216,1763572238603,-500.0,0.00011922,2]
[394437217,1763572238612,-500.0,0.00011922,2]
[394437220,1763572238622,-500.0,0.00011922,2]
[394437222,1763572238631,-500.0,0.00011922,2]
[394437224,1763572238640,-500.0,0.00011922,2]
[394437226,1763572238649,-500.0,0.00011922,2]
[394437228,1763572238659,-500.0,0.00011922,2]
[394437230,1763572238668,-500.0,0.00011922,2]
[394437231,1763572238677,-500.0,0.00011922,2]
[394437233,1763572238686,-105360.9004583,0.00011923,2]
[394437235,1763572238696,-128973.68578079,0.00012043,2]
[394437237,1763572238705,-228.25723155,0.00012104,2]
[394437239,1763572238714,-50000.0,0.00012166,2]
[394437241,1763572238724,-500.0,0.00012166,2]
[394437243,1763572238733,-206.57223267,0.00012314,2]
[394437245,1763572238742,-151.0,0.00012414,2]
[394437247,1763572238752,-151.0,0.00012415,2]
[394437249,1763572238762,-201.18033103,0.00012415,2]
[394437252,1763572238774,-807002.93154371,0.00012416,2]
[394437253,1763572238784,-500.0,0.0001244,2]
[394437256,1763572238793,-151.0,0.00012441,2]
[394437267,1763572238894,-151.0,0.00012442,2]
[394437269,1763572238904,-500.0,0.00012473,2]
[394437271,1763572238914,-500.0,0.00012473,2]
[394437273,1763572238926,-558.41505035,0.00012473,2]
[394437275,1763572238935,-500.0,0.00012473,2]
[394437277,1763572238944,-500.0,0.00012473,2]
[394437279,1763572238953,-500.0,0.00012473,2]
[394437281,1763572238962,-500.0,0.00012473,2]
[394437283,1763572238972,-500.0,0.00012473,2]
[394437285,1763572238981,-500.0,0.00012473,2]
[394437287,1763572238990,-500.0,0.00012473,2]
[394437289,1763572239000,-500.0,0.00012473,2]
[394437291,1763572239009,-500.0,0.00012473,2]
[394437293,1763572239018,-500.0,0.00012473,2]
[394437295,1763572239028,-500.0,0.00012473,2]
[394437297,1763572239037,-500.0,0.00012473,2]
[394437299,1763572239046,-500.0,0.00012473,2]
[394437301,1763572239056,-500.0,0.00012473,2]
[394437303,1763572239065,-500.0,0.00012473,2]
[394437305,1763572239075,-263.70606165,0.00012473,2]
[394437307,1763572239085,-151.0,0.000127,2]
[394437309,1763572239095,-500.0,0.00012714,2]
[394437311,1763572239105,-151.0,0.000129,2]
[394437313,1763572239114,-7843.66710807,0.000129,2]
[394437315,1763572239123,-500.0,0.00012988,2]
[394437317,1763572239133,-151.0,0.00013,2]
[394437319,1763572239143,-1008.7135632,0.00013021,2]
[394437321,1763572239152,-504.76291917,0.00013021,2]
[394437323,1763572239162,-500.0,0.00013021,2]
[394437325,1763572239172,-1000.0,0.00013021,2]
[394437327,1763572239182,-506.86425752,0.00013021,2]
[394437329,1763572239192,-309.59582408,0.00013021,2]
[394437331,1763572239202,-1000.0,0.00013021,2]
[394437333,1763572239212,-1000.0,0.00013021,2]
[394437335,1763572239221,-1000.0,0.00013021,2]
[394437337,1763572239231,-579.97833016,0.00013021,2]
[394437339,1763572239241,-501.72405648,0.00013021,2]
[394437341,1763572239251,-420.0,0.00013089,2]
[394437343,1763572239259,-151.0,0.000131,2]
[394437345,1763572239269,-657.0,0.00013114,2]
[394437347,1763572239279,-500.0,0.00013262,2]
[394437349,1763572239288,-151.0,0.000133,2]
[394437351,1763572239298,-163.42,0.000133,2]
[394437353,1763572239308,-163.42,0.000133,2]
[394437355,1763572239317,-163.42,0.000133,2]
[394437357,1763572239326,-163.42,0.000133,2]
[394437359,1763572239335,-163.42,0.000133,2]
[394437361,1763572239345,-150.97,0.000133,2]
[394437363,1763572239354,-151.0,0.000134,2]
[394437365,1763572239364,-207.45,0.00013413,2]
[394437367,1763572239373,-207.45,0.00013427,2]
[394437369,1763572239382,-151.0,0.000135,2]
[394437371,1763572239391,-1500.0,0.00013568,2]
[394437373,1763572239400,-1500.0,0.00013568,2]
[394437375,1763572239409,-1500.0,0.00013568,2]
[394437379,1763572239418,-1500.0,0.00013568,2]
[394437382,1763572239427,-500.0,0.00013658,2]
[394437384,1763572239436,-155.39006501,0.00013658,2]
[394437386,1763572239445,-157.8498372,0.00013658,2]
[394437388,1763572239454,-151.0,0.00013658,2]
[394437390,1763572239463,-507.87247898,0.00013658,2]
[394437392,1763572239474,-500.0,0.00013685,2]
[394437394,1763572239483,-205.52159326,0.00013685,2]
[394437396,1763572239493,-12512.33,0.00013698,2]
[394437398,1763572239502,-12512.33,0.00013698,2]
[394437400,1763572239511,-12512.33,0.00013698,2]
[394437402,1763572239521,-12512.33,0.00013698,2]
[394437404,1763572239531,-12512.33,0.00013698,2]
[394437406,1763572239541,-12512.33,0.00013698,2]
[394437408,1763572239550,-12512.33,0.00013698,2]
[394437411,1763572239559,-12512.33,0.00013698,2]
[394437412,1763572239568,-12512.33,0.00013698,2]
[394437416,1763572239578,-12512.33,0.00013698,2]
[394437419,1763572239587,-12512.33,0.00013698,2]
[394437422,1763572239596,-12512.33,0.00013698,2]
[394437424,1763572239606,-12512.33,0.00013698,2]
[394437426,1763572239615,-8888.62709305,0.00013698,2]
[394437624,1763572241467,-474.65,0.00013698,2]
[394437627,1763572241485,-322.46275452,0.00013698,2]
[394437630,1763572241496,-836.55525642,0.00013698,2]
[394437881,1763572243995,-1990.03489601,0.00013698,2]
[394437883,1763572244004,-1624.52601632,0.00013698,2]
[394437966,1763572244814,-106.76720741,0.00013698,2]
[394438046,1763572261851,197.81,5e-05,2]
[394438047,1763572406149,577.41162289,0.000155,3]
[394438048,1763572539961,1011.38034866,0.000155,3]
[394438049,1763572542475,4045.52139466,0.000155,3]
[394438074,1763572718503,2746.02987075,0.000155,3]
[394438075,1763572748112,557.630247,0.00040378,120]
[394438078,1763573011685,734.06,0.00040395,20]
[394438079,1763573120833,-228.25723155,0.00010984,2]
[394438080,1763573120856,-168.42994544,0.00011035,2]
[394438081,1763573122687,151.40617897,0.00013069,7]
[394438082,1763573160730,354.64468655,0.000155,3]
[394438083,1763573165632,-153.01727088,0.00011035,2]
[394438084,1763573169378,-503.98272912,0.00011035,2]
[394438085,1763573169402,-194.0172991,0.00011035,2]
[394438086,1763573172409,-105.9827009,0.00011035,2]
[394438087,1763573172431,-47.03456998,0.00011035,2]
[394438088,1763573174157,-176.65751694,0.00011035,2]
[394438089,1763573174184,-500.0,0.00011036,2]
[394438090,1763573174210,-237.29635703,0.00011036,2]
[394438091,1763573180541,-192.09411889,0.00011036,2]
[394438092,1763573184439,-70.60952408,0.00011036,2]
[394438093,1763573184462,-388.28750816,0.00011036,2]
[394438095,1763573187494,-532.56953448,0.00010926,2]
[394438096,1763573189942,-300.0,0.00010926,2]
[394438097,1763573192299,-169.45799399,0.00010926,2]
[394438098,1763573194175,-373.65466446,0.00010926,2]